bitfinex/quotes_BTCUSD_20220306
["timestamp","ask_amount","ask_price","bid_price","bid_amount"]
[1646597497078,0.054128,38790.0,38788.0,0.0002084]
[1646597497274,0.0517,38789.0,38788.0,0.0002084]
[1646597497675,0.064522,38787.0,38781.0,0.5]
[1646597497876,0.0517,38786.0,38781.0,0.5]
[1646597498075,0.0517,38786.0,38778.0,0.1146]
[1646597498273,0.1162167,38786.0,38780.0,0.16698098]
[1646597498475,0.064519,38785.0,38780.0,0.16698098]
[1646597499073,0.064519,38785.0,38781.0,0.00020555]
[1646597499272,0.19354929,38785.0,38781.0,0.00020555]
[1646597499473,0.25806829,38785.0,38781.0,0.00020555]
[1646597499672,0.06451473,38784.0,38781.0,0.00020555]
[1646597499874,0.12902973,38784.0,38781.0,0.00020555]
[1646597500119,0.12902973,38784.0,38777.0,0.21858459]
[1646597500316,0.22902973,38784.0,38781.0,0.00020555]
[1646597501317,0.22902973,38784.0,38778.0,0.21116311]
[1646597501517,0.22902973,38784.0,38781.0,0.00020555]
[1646597502518,0.22902973,38784.0,38777.0,0.21858459]
[1646597502719,0.55571295,38784.0,38781.0,0.0001939]
[1646597502918,0.064515,38783.0,38781.0,0.0001939]
[1646597503123,0.16451473,38784.0,38783.0,0.12903]
[1646597504365,0.16451473,38784.0,38783.0,0.13205565]
[1646597504564,0.22902973,38784.0,38783.0,0.13205565]
[1646597508212,0.164515,38784.0,38783.0,0.13205565]
[1646597508418,0.49021242,38784.0,38783.0,0.13205565]
[1646597508615,0.39021242,38784.0,38783.0,0.13205565]
[1646597508815,0.49021242,38784.0,38783.0,0.13205565]
[1646597509415,0.164515,38784.0,38783.0,0.13205565]
[1646597509613,0.1669708,38784.0,38783.0,0.13205565]
[1646597509814,0.0669708,38784.0,38783.0,0.13205565]
[1646597510015,0.1669708,38784.0,38783.0,0.13205565]
[1646597512564,0.0669708,38784.0,38783.0,0.13205565]
[1646597512764,0.1669708,38784.0,38783.0,0.13205565]
[1646597513365,0.1024558,38784.0,38783.0,0.13205565]
[1646597513572,0.0024558,38784.0,38783.0,0.13205565]
[1646597514366,0.00568134,38784.0,38783.0,0.12903]
[1646597517515,0.00542608,38784.0,38783.0,0.12903]
[1646597519468,0.0024558,38784.0,38783.0,0.13204347]
[1646597521073,0.32815322,38784.0,38783.0,0.13204347]
[1646597521272,0.52815322,38784.0,38783.0,0.13204347]
[1646597521475,0.57985322,38784.0,38783.0,0.13204347]
[1646597521669,0.58688314,38784.0,38783.0,0.13204347]
[1646597522269,0.65300792,38784.0,38783.0,0.13204347]
[1646597524917,0.58688314,38784.0,38783.0,0.13204347]
[1646597526969,0.58662788,38784.0,38783.0,0.13204347]
[1646597527170,0.58654792,38784.0,38783.0,0.13204347]
[1646597529675,0.58675649,38784.0,38783.0,0.13399221]
[1646597531517,0.26105907,38784.0,38783.0,0.13399221]
[1646597531723,0.10232915,38784.0,38783.0,0.13399221]
[1646597531919,0.20232915,38784.0,38783.0,0.13399221]
[1646597533020,0.10232915,38784.0,38783.0,0.13399221]
[1646597533219,0.20232915,38784.0,38783.0,0.13399221]
[1646597534170,0.52802657,38784.0,38783.0,0.13399221]
[1646597534563,0.52802657,38784.0,38783.0,0.13137899]
[1646597535967,0.20232915,38784.0,38783.0,0.13137899]
[1646597536167,0.00232915,38784.0,38783.0,0.13137899]
[1646597539028,0.1,38788.0,38784.0,0.00465829]
[1646597539228,0.1,38793.0,38784.0,0.00465829]
[1646597539632,0.3771,38794.0,38784.0,0.00465829]
[1646597539633,0.1,38792.0,38784.0,0.00465829]
[1646597539828,0.1,38792.0,38787.0,0.0001933]
[1646597540928,0.1,38792.0,38784.0,0.00465829]
[1646597541129,0.1,38792.0,38788.0,0.00019329]
[1646597542174,0.1,38792.0,38790.0,0.20173268]
[1646597542371,0.77306,38791.0,38790.0,0.20173268]
[1646597542770,0.77306,38791.0,38788.0,0.00019329]
[1646597543371,0.77306,38791.0,38786.0,0.185198]
[1646597543571,0.77306,38791.0,38788.0,0.0001933]
[1646597544372,0.77306,38791.0,38789.0,0.00165959]
[1646597544778,0.32569742,38790.0,38789.0,0.00165959]
[1646597545014,0.42569742,38790.0,38789.0,0.00165959]
[1646597545516,0.49435628,38790.0,38789.0,0.00165959]
[1646597545719,0.65886428,38790.0,38789.0,0.00165959]
[1646597546414,0.65386428,38790.0,38789.0,0.00165959]
[1646597547618,0.78455487,38790.0,38789.0,0.00165959]
[1646597547817,1.60931487,38790.0,38789.0,0.00165959]
[1646597550373,1.54065601,38790.0,38789.0,0.00165959]
[1646597550573,1.16122867,38790.0,38789.0,0.00165959]
[1646597550773,1.09672067,38790.0,38789.0,0.00165959]
[1646597551176,0.77306,38790.0,38789.0,0.18347702]
[1646597552375,0.77306,38790.0,38789.0,0.50917444]
[1646597552625,0.77306,38790.0,38789.0,0.92098644]
[1646597553421,0.77306,38790.0,38789.0,1.07098644]
[1646597553823,0.77306,38790.0,38789.0,1.12268644]
[1646597554017,0.7648775,38790.0,38789.0,1.12268644]
[1646597554221,0.7372775,38790.0,38789.0,1.12268644]
[1646597554620,0.7372775,38790.0,38789.0,0.77116902]
[1646597554823,0.7372775,38790.0,38789.0,1.59551734]
[1646597555021,0.7372775,38790.0,38789.0,1.12116902]
[1646597556465,0.7372775,38790.0,38789.0,1.44551734]
[1646597556865,0.7372775,38790.0,38789.0,1.12116902]
[1646597557062,0.7372775,38790.0,38789.0,1.44551734]
[1646597558664,0.7372775,38790.0,38789.0,0.73517702]
[1646597559064,0.7372775,38790.0,38789.0,0.73545509]
[1646597559565,0.7372775,38790.0,38789.0,0.55363766]
[1646597560619,0.7372775,38790.0,38789.0,0.73371787]
[1646597561620,0.7372775,38790.0,38789.0,0.55363766]
[1646597563025,0.7372775,38790.0,38789.0,0.50193766]
[1646597565068,0.7372775,38790.0,38789.0,1.02696358]
[1646597566568,0.7372775,38790.0,38789.0,1.52696358]
[1646597566774,0.7372775,38790.0,38789.0,1.20261526]
[1646597567516,0.7372775,38790.0,38789.0,1.52696358]
[1646597568119,0.7372775,38790.0,38789.0,1.99047558]
[1646597568516,0.7372775,38790.0,38789.0,1.60448358]
[1646597568715,0.0010853,38791.0,38789.0,1.60448358]
[1646597568917,0.0657465,38800.0,38796.0,0.00196306]
[1646597569718,0.0012605,38800.0,38796.0,0.00196306]
[1646597570319,0.0012605,38800.0,38799.0,0.21190975]
[1646597570719,0.0012605,38800.0,38796.0,0.00196306]
[1646597571366,0.1012605,38800.0,38796.0,0.00196306]
[1646597572067,0.2302355,38800.0,38796.0,0.00196306]
[1646597572468,0.29484507,38800.0,38796.0,0.00196306]
[1646597572867,0.42383072,38800.0,38796.0,0.00196306]
[1646597573471,0.42370813,38800.0,38796.0,0.00196306]
[1646597573670,0.1,38799.0,38796.0,0.00196306]
[1646597573866,0.1,38798.0,38796.0,0.00196306]
[1646597574066,0.064494,38797.0,38796.0,0.00196306]
[1646597574866,0.10020754,38798.0,38796.0,0.00196306]
[1646597575814,0.1,38798.0,38796.0,0.00196306]
[1646597578975,0.1517,38797.0,38796.0,0.00196306]
[1646597579171,0.15289996,38797.0,38796.0,0.00196306]
[1646597579569,0.14789996,38797.0,38796.0,0.00196306]
[1646597579772,0.0517,38797.0,38796.0,0.00196306]
[1646597583118,0.0517,38797.0,38791.0,0.00019249]
[1646597583319,0.064499,38794.0,38791.0,0.00019249]
[1646597584120,0.064499,38794.0,38789.0,0.47696306]
[1646597584320,0.064499,38794.0,38791.0,0.00019248]
[1646597585323,0.12899784,38794.0,38789.0,0.47696306]
[1646597585520,0.12899784,38794.0,38791.0,0.00019295]
[1646597586569,0.12899784,38794.0,38789.0,0.47696306]
[1646597586768,0.12765286,38794.0,38791.0,0.00019295]
[1646597587771,0.12765286,38794.0,38789.0,0.47696306]
[1646597587971,0.12765286,38794.0,38791.0,0.00019295]
[1646597588978,0.12765286,38794.0,38789.0,0.47696306]
[1646597589174,0.12765286,38794.0,38791.0,0.0001929]
[1646597589373,0.12853205,38794.0,38793.0,0.00419199]
[1646597593873,0.12853205,38794.0,38793.0,0.00250378]
[1646597605835,0.45572786,38794.0,38793.0,0.00250378]
[1646597606236,0.28726197,38794.0,38793.0,0.00250378]
[1646597607245,0.50712093,38794.0,38793.0,0.00250378]
[1646597607438,0.73091271,38794.0,38793.0,0.00250378]
[1646597607642,0.41105375,38794.0,38793.0,0.00250378]
[1646597608241,0.73092938,38794.0,38793.0,0.00250378]
[1646597608441,0.73092938,38794.0,38792.0,0.00252661]
[1646597608442,1.07904437,38793.0,38792.0,0.00252661]
[1646597608642,1.45748476,38793.0,38792.0,0.00252661]
[1646597608873,2.85375874,38793.0,38792.0,0.00252661]
[1646597609272,2.85375874,38793.0,38791.0,0.00019291]
[1646597609474,0.57631925,38792.0,38790.0,0.00256355]
[1646597609675,0.05872992,38791.0,38790.0,0.00256355]
[1646597611075,1.12776594,38793.0,38790.0,0.00256355]
[1646597611076,0.15,38793.0,38790.0,0.00256355]
[1646597611276,0.10654278,38791.0,38790.0,0.00256355]
[1646597611475,0.15824278,38791.0,38790.0,0.00256355]
[1646597613819,0.19756555,38791.0,38790.0,0.00256355]
[1646597614320,0.20088463,38791.0,38790.0,0.00376485]
[1646597614519,0.26539563,38791.0,38790.0,0.00376485]
[1646597619083,0.26531632,38791.0,38790.0,0.00376485]
[1646597627626,0.22599355,38791.0,38790.0,0.00376485]
[1646597627827,0.17429355,38791.0,38790.0,0.00376485]
[1646597632881,0.06775077,38791.0,38790.0,0.00376485]
[1646597634176,0.064511,38791.0,38790.0,0.00376485]
[1646597637717,0.16538914,38792.0,38790.0,0.00376485]
[1646597643731,0.00264492,38791.0,38790.0,0.00367598]
[1646597651926,0.05434492,38791.0,38790.0,0.00367598]
[1646597652129,0.44262712,38791.0,38790.0,0.00367598]
[1646597652328,0.54262712,38791.0,38790.0,0.00367598]
[1646597654078,0.15434492,38791.0,38790.0,0.00367598]
[1646597656282,0.05434492,38791.0,38790.0,0.00367598]
[1646597659224,0.05434492,38791.0,38790.0,0.00277187]
[1646597663077,0.00264492,38791.0,38790.0,0.00277187]
[1646597667325,0.00264492,38791.0,38790.0,0.32557743]
[1646597667525,0.00264492,38791.0,38790.0,0.35139743]
[1646597668523,0.00264492,38791.0,38790.0,0.35129801]
[1646597668771,4.92e-06,38791.0,38790.0,0.35129801]
[1646597668981,0.00019249,38798.0,38791.0,5.508e-05]
[1646597669177,0.00019249,38798.0,38793.0,0.02582]
[1646597669375,0.001,38797.0,38795.0,0.02582]
[1646597669678,0.001,38797.0,38796.0,0.18911658]
[1646597669872,0.001,38797.0,38796.0,0.62652214]
[1646597670071,0.001,38797.0,38796.0,0.83828426]
[1646597671276,0.00012271,38798.0,38796.0,0.83828426]
[1646597671477,0.00012271,38798.0,38797.0,0.34862556]
[1646597671674,0.00012271,38798.0,38797.0,0.32280556]
[1646597671874,0.0012605,38800.0,38796.0,0.3750587]
[1646597672074,0.00019321,38799.0,38796.0,0.16329658]
[1646597672524,0.064492,38798.0,38792.0,0.37450556]
[1646597672826,0.064492,38798.0,38792.0,0.0517]
[1646597673225,0.06468521,38798.0,38792.0,0.0517]
[1646597673424,0.06468521,38798.0,38791.0,0.28202667]
[1646597673624,0.064497,38796.0,38791.0,0.00024832]
[1646597673826,0.128993,38796.0,38791.0,0.00024832]
[1646597674324,0.128993,38796.0,38791.0,5.508e-05]
[1646597674525,0.128993,38796.0,38791.0,0.00024832]
[1646597674833,0.064499,38794.0,38791.0,0.00024832]
[1646597675128,0.064509,38793.0,38791.0,0.00024832]
[1646597675529,0.064509,38793.0,38791.0,5.508e-05]
[1646597676126,0.129023,38792.0,38791.0,5.508e-05]
[1646597679476,0.129023,38792.0,38791.0,0.00153332]
[1646597680733,0.229023,38792.0,38791.0,0.00153332]
[1646597684174,0.229023,38792.0,38791.0,0.00305992]
[1646597686779,0.34258604,38792.0,38791.0,0.00305992]
[1646597688119,0.34258457,38792.0,38791.0,0.00305992]
[1646597689119,0.34258457,38792.0,38791.0,0.00158168]
[1646597690123,0.39428457,38792.0,38791.0,0.00158168]
[1646597691972,0.41928457,38792.0,38791.0,0.00158168]
[1646597693776,0.41928457,38792.0,38791.0,0.00148768]
[1646597694376,0.41928457,38792.0,38790.0,0.00328334]
[1646597694577,0.11356304,38791.0,38790.0,0.00328334]
[1646597694776,0.16526304,38791.0,38790.0,0.00310478]
[1646597697223,0.19026304,38791.0,38790.0,0.00310478]
[1646597697628,0.29026304,38791.0,38790.0,0.00310478]
[1646597698624,0.6130686,38791.0,38790.0,0.00310478]
[1646597699679,0.29026304,38791.0,38790.0,0.00310478]
[1646597699879,0.29026304,38791.0,38790.0,0.00161844]
[1646597699880,0.125,38791.0,38790.0,0.00161844]
[1646597700281,0.025,38791.0,38790.0,0.00161844]
[1646597700878,0.025,38791.0,38790.0,0.20067191]
[1646597701679,0.025,38791.0,38790.0,0.00161844]
[1646597704520,0.025,38791.0,38789.0,0.47875878]
[1646597704921,0.19351171,38793.0,38789.0,0.47875878]
[1646597704922,0.025,38790.0,38789.0,0.47875878]
[1646597705322,0.0767,38790.0,38789.0,0.47875878]
[1646597705526,0.39950556,38790.0,38789.0,0.47858022]
[1646597705721,0.49950556,38790.0,38789.0,0.47858022]
[1646597706375,0.1767,38790.0,38789.0,0.47858022]
[1646597706978,0.0767,38790.0,38789.0,0.47858022]
[1646597707177,0.39950556,38790.0,38789.0,0.47858022]
[1646597707575,0.49950556,38790.0,38789.0,0.47858022]
[1646597708179,0.49450556,38790.0,38789.0,0.47858022]
[1646597709177,0.81947766,38790.0,38789.0,0.47858022]
[1646597709378,0.66199516,38790.0,38789.0,0.47858022]
[1646597709578,0.82948476,38790.0,38789.0,0.47858022]
[1646597710022,0.80948476,38790.0,38789.0,0.47858022]
[1646597710223,0.82948476,38790.0,38789.0,0.47858022]
[1646597710827,0.77778476,38790.0,38789.0,0.47858022]
[1646597711227,0.4549792,38790.0,38789.0,0.47858022]
[1646597720734,0.3549792,38790.0,38789.0,0.47858022]
[1646597732620,0.3549792,38790.0,38789.0,0.47847451]
[1646597742325,0.1,38797.0,38790.0,1.30906087]
[1646597742824,0.185087,38799.0,38794.0,0.17736356]
[1646597743023,0.00017852,38798.0,38794.0,0.17736356]
[1646597743878,0.164487,38799.0,38794.0,0.17736356]
[1646597744079,0.00017853,38798.0,38794.0,0.17736356]
[1646597745180,0.164487,38799.0,38794.0,0.17736356]
[1646597745382,0.15966553,38799.0,38794.0,0.17736356]
[1646597745781,0.05966553,38799.0,38794.0,0.17736356]
[1646597746181,0.15966553,38799.0,38794.0,0.17736356]
[1646597747822,0.064491,38798.0,38794.0,0.17736356]
[1646597748324,0.15966553,38799.0,38794.0,0.17736356]
[1646597748525,0.05966553,38799.0,38794.0,0.17736356]
[1646597748827,0.0012605,38800.0,38794.0,0.17736356]
[1646597749123,0.00145472,38800.0,38796.0,0.00124186]
[1646597749924,0.0012605,38800.0,38796.0,0.00124186]
[1646597750124,0.00145472,38800.0,38796.0,0.00124186]
[1646597750527,0.00145472,38800.0,38797.0,0.411812]
[1646597750726,0.00145472,38800.0,38798.0,0.30991285]
[1646597750926,0.00145472,38800.0,38799.0,0.385992]
[1646597751125,0.0012605,38800.0,38799.0,0.385992]
[1646597751581,0.0012605,38800.0,38797.0,0.02582]
[1646597752384,0.0012605,38800.0,38796.0,0.26944186]
[1646597752585,0.0012605,38800.0,38796.0,0.11944186]
[1646597752986,0.19472727,38800.0,38796.0,0.11944186]
[1646597753187,0.74156517,38799.0,38796.0,0.00124186]
[1646597753386,0.064499,38798.0,38796.0,0.00124186]
[1646597753592,0.3215156,38797.0,38796.0,0.00124186]
[1646597753786,0.43507278,38797.0,38796.0,0.00124186]
[1646597753984,0.49429562,38797.0,38796.0,0.00124186]
[1646597754286,0.75228715,38797.0,38795.0,0.00123936]
[1646597754488,0.3215156,38796.0,38795.0,0.00123936]
[1646597756444,0.4215156,38796.0,38795.0,0.00123936]
[1646597756642,0.6132156,38796.0,38795.0,0.00123936]
[1646597757441,0.4732156,38796.0,38795.0,0.00123936]
[1646597757641,0.58677424,38796.0,38795.0,0.00123936]
[1646597758041,0.70419382,38796.0,38795.0,0.00123936]
[1646597758239,0.58677424,38796.0,38795.0,0.00123936]
[1646597758440,0.70419382,38796.0,38795.0,0.00123936]
[1646597758641,0.38267822,38796.0,38795.0,0.00123936]
[1646597759093,0.26525864,38796.0,38795.0,0.00123936]
[1646597759493,0.26525864,38796.0,38795.0,0.00244514]
[1646597763927,0.26525864,38796.0,38795.0,0.00243481]
[1646597767987,0.26525864,38796.0,38795.0,0.00232062]
[1646597768987,0.26525864,38796.0,38795.0,0.00358895]
[1646597772535,1.079004,38795.0,38792.0,0.00017778]
[1646597772733,0.18072504,38794.0,38790.0,0.20906087]
[1646597772932,0.29814462,38794.0,38792.0,0.00017811]
[1646597773434,0.18072504,38794.0,38792.0,0.00017811]
[1646597773889,0.18072504,38794.0,38790.0,0.20906087]
[1646597774089,0.18072504,38794.0,38791.0,0.00017823]
[1646597775094,0.18072504,38794.0,38790.0,0.20906087]
[1646597775289,0.18072504,38794.0,38791.0,0.00017823]
[1646597776291,0.18072504,38794.0,38790.0,0.20906087]
[1646597776490,0.18072504,38794.0,38791.0,0.0001782]
[1646597777534,0.18072504,38794.0,38790.0,0.20906087]
[1646597777736,0.18072504,38794.0,38791.0,0.00017818]
[1646597778734,0.18072504,38794.0,38790.0,0.20906087]
[1646597778932,0.18072504,38794.0,38791.0,0.00017818]
[1646597779131,0.18072504,38794.0,38793.0,0.00236728]
[1646597779333,0.95405504,38794.0,38793.0,0.00236728]
[1646597779533,1.05405504,38794.0,38793.0,0.00236728]
[1646597779735,1.17147462,38794.0,38793.0,0.00236728]
[1646597781583,1.11977462,38794.0,38793.0,0.00236728]
[1646597786635,1.17147462,38794.0,38793.0,0.00236728]
[1646597790582,1.16147462,38794.0,38793.0,0.00236728]
[1646597792827,1.16137971,38794.0,38793.0,0.00236728]
[1646597794327,1.16137971,38794.0,38793.0,0.00353978]
[1646597794730,1.10696158,38794.0,38793.0,0.00353978]
[1646597794931,0.89074958,38794.0,38793.0,0.00353978]
[1646597795129,0.77333,38794.0,38793.0,0.00353978]
[1646597798882,0.77333,38794.0,38793.0,0.00180283]
[1646597802631,0.742674,38794.0,38793.0,0.00180283]
[1646597803778,0.742674,38794.0,38792.0,0.00360056]
[1646597803980,0.742674,38794.0,38792.0,0.00342238]
[1646597804188,0.742674,38794.0,38792.0,0.00360056]
[1646597805181,0.742674,38794.0,38792.0,0.00342238]
[1646597808930,0.742674,38794.0,38792.0,0.00169092]
[1646597810136,0.86011011,38794.0,38792.0,0.00169092]
[1646597810334,0.742674,38794.0,38792.0,0.00169092]
[1646597810535,0.06404115,38793.0,38792.0,0.00169092]
[1646597810736,0.16404115,38793.0,38792.0,0.00169092]
[1646597811786,0.1,38793.0,38792.0,0.00169092]
[1646597811985,0.21743611,38793.0,38792.0,0.00169092]
[1646597812181,0.1,38793.0,38792.0,0.00169092]
[1646597813982,0.32521702,38793.0,38791.0,0.00189447]
[1646597814382,0.34645317,38793.0,38791.0,0.00189447]
[1646597814588,0.09999996,38792.0,38791.0,0.00189447]
[1646597814783,0.09999996,38792.0,38791.0,0.00169223]
[1646597816033,0.15953568,38792.0,38791.0,0.00169223]
[1646597816231,0.09999996,38792.0,38791.0,0.00169223]
[1646597816430,0.064501,38792.0,38791.0,0.00169223]
[1646597816629,0.28193311,38793.0,38791.0,0.00169223]
[1646597816829,0.26449696,38793.0,38791.0,0.00169223]
[1646597817233,0.38193307,38793.0,38791.0,0.00169223]
[1646597818229,0.26449696,38793.0,38791.0,0.00169223]
[1646597819183,0.26449696,38793.0,38790.0,0.21094638]
[1646597819585,0.26449696,38793.0,38790.0,0.21075441]
[1646597819789,0.26449696,38793.0,38790.0,0.21094638]
[1646597820888,0.26449696,38793.0,38790.0,0.21075441]
[1646597821088,0.26449696,38793.0,38790.0,0.21094708]
[1646597821291,0.1,38793.0,38790.0,0.21094708]
[1646597822087,0.1,38793.0,38790.0,0.21075441]
[1646597822292,0.1,38793.0,38790.0,0.21094708]
[1646597823125,0.1,38793.0,38790.0,0.21075441]
[1646597823325,0.1,38793.0,38790.0,0.21050748]
[1646597824126,0.1,38793.0,38792.0,0.00340089]
[1646597826477,0.19999996,38793.0,38792.0,0.00340089]
[1646597829178,0.19999996,38793.0,38792.0,0.0030206]
[1646597830034,0.31752234,38793.0,38792.0,0.0030206]
[1646597830231,0.19999996,38793.0,38792.0,0.0030206]
[1646597831433,0.1,38793.0,38792.0,0.0030206]
[1646597834376,0.1,38793.0,38792.0,0.00441605]
[1646597836476,0.2,38793.0,38792.0,0.00441605]
[1646597839633,0.51552883,38793.0,38792.0,0.00441605]
[1646597839832,0.51552883,38793.0,38792.0,0.00308768]
[1646597839833,0.68476247,38793.0,38792.0,0.00308768]
[1646597840033,1.19899212,38793.0,38792.0,0.00308768]
[1646597840441,1.0,38792.0,38791.0,0.00017799]
[1646597840633,1.1917,38792.0,38791.0,0.00017799]
[1646597840937,0.55,38791.0,38790.0,0.20862127]
[1646597841132,0.8797963,38791.0,38790.0,0.20862127]
[1646597841389,1.57096917,38791.0,38790.0,0.20862127]
[1646597841589,1.1,38790.0,38780.0,0.1173]
[1646597841790,0.11360262,38786.0,38780.0,0.1173]
[1646597841988,0.1,38784.0,38776.0,0.32021782]
[1646597842188,0.064526,38781.0,38775.0,0.16953099]
[1646597842387,0.064526,38781.0,38773.0,0.64263223]
[1646597842589,0.064526,38781.0,38778.0,7.179e-05]
[1646597842791,0.164526,38781.0,38778.0,7.179e-05]
[1646597843391,0.064523,38779.0,38778.0,7.179e-05]
[1646597843691,0.06452165,38780.0,38779.0,0.12904599]
[1646597844092,0.19357265,38780.0,38779.0,0.12904599]
[1646597844693,0.32262065,38780.0,38779.0,0.12904599]
[1646597844894,0.69406651,38780.0,38779.0,0.12904599]
[1646597845134,0.79406651,38780.0,38779.0,0.12904599]
[1646597845540,0.89406651,38780.0,38779.0,0.12904599]
[1646597846236,1.00768087,38780.0,38779.0,0.12904599]
[1646597846435,1.12521451,38780.0,38779.0,0.12904599]
[1646597846933,1.86788851,38780.0,38779.0,0.12904599]
[1646597849000,3.06916134,38780.0,38779.0,0.12904599]
[1646597849199,1.8842,38779.0,38778.0,0.000194]
[1646597849401,3.08585249,38779.0,38778.0,0.000194]
[1646597849599,3.72035244,38779.0,38778.0,0.00149595]
[1646597849799,0.7842,38777.0,38764.0,0.1128]
[1646597850001,0.12909546,38770.0,38764.0,0.1128]
[1646597850198,0.1,38766.0,38764.0,0.16066862]
[1646597850599,0.1,38766.0,38761.0,0.16252805]
[1646597851198,0.064547,38765.0,38761.0,0.16252805]
[1646597851599,0.064547,38765.0,38762.0,0.20224645]
[1646597852201,0.064543,38764.0,38761.0,0.16252805]
[1646597853060,0.1,38766.0,38761.0,0.16252805]
[1646597853263,0.064545,38764.0,38756.0,0.01289]
[1646597853467,0.064545,38764.0,38761.0,0.00020715]
[1646597854563,0.064545,38764.0,38763.0,0.00195088]
[1646597855368,0.38398336,38764.0,38763.0,0.00195088]
[1646597855564,0.50023336,38764.0,38763.0,0.00195088]
[1646597855765,0.60023336,38764.0,38763.0,0.00195088]
[1646597855970,0.70023336,38764.0,38763.0,0.00195088]
[1646597856803,0.81389614,38764.0,38763.0,0.00195088]
[1646597857005,0.81389468,38764.0,38763.0,0.00195088]
[1646597857204,0.81389321,38764.0,38763.0,0.00195088]
[1646597857604,0.9613767,38764.0,38763.0,0.00195088]
[1646597857803,0.81389321,38764.0,38763.0,0.00195088]
[1646597858404,0.9613767,38764.0,38763.0,0.00195088]
[1646597859508,0.81389321,38764.0,38763.0,0.00195088]
[1646597859706,0.81389321,38764.0,38757.0,0.16110966]
[1646597859908,0.129099,38762.0,38757.0,0.16110966]
[1646597860137,0.0517,38761.0,38757.0,0.16104306]
[1646597860335,0.2517,38761.0,38757.0,0.16104306]
[1646597860938,0.2,38761.0,38757.0,0.16104306]
[1646597861437,0.1,38761.0,38757.0,0.16104306]
[1646597861636,0.229099,38762.0,38757.0,0.16104306]
[1646597861837,0.164549,38762.0,38757.0,0.16104306]
[1646597862837,0.164549,38762.0,38750.0,0.02582]
[1646597863038,0.064549,38762.0,38758.0,0.00020668]
[1646597863238,0.064552,38761.0,38758.0,0.00020668]
[1646597863644,0.38399036,38761.0,38758.0,0.00020668]
[1646597863884,0.1,38760.0,38758.0,0.00020668]
[1646597864083,0.064562,38758.0,38746.0,0.1195]
[1646597864284,0.064571,38754.0,38746.0,0.1195]
[1646597864483,0.31943836,38753.0,38746.0,0.1195]
[1646597864683,0.31943836,38755.0,38741.0,0.02582]
[1646597864883,0.31943836,38755.0,38747.0,0.17005325]
[1646597865083,0.31943836,38755.0,38742.0,0.02582]
[1646597865485,0.064571,38751.0,38749.0,0.0002067]
[1646597866488,0.064571,38751.0,38740.0,0.1142]
[1646597866489,0.47113836,38750.0,38740.0,0.1142]
[1646597866686,0.47113836,38750.0,38739.0,0.0352067]
[1646597866687,1.2,38749.0,38739.0,0.0352067]
[1646597866884,0.1,38745.0,38739.0,0.0352067]
[1646597867087,0.064584,38744.0,38739.0,0.0352067]
[1646597867544,0.1,38745.0,38739.0,0.0352067]
[1646597868544,0.1,38745.0,38740.0,0.18535591]
[1646597868950,0.1,38745.0,38739.0,0.0352067]
[1646597869346,0.06458,38744.0,38739.0,0.0352067]
[1646597869944,0.06458,38744.0,38739.0,0.0302067]
[1646597870144,0.06458,38744.0,38739.0,0.0301401]
[1646597870546,0.38401836,38744.0,38739.0,0.0301401]
[1646597870746,0.06458,38744.0,38739.0,0.0301401]
[1646597871047,0.1,38745.0,38739.0,0.0301401]
[1646597871286,0.1,38746.0,38739.0,0.0301401]
[1646597871493,0.1,38745.0,38740.0,0.00020672]
[1646597871889,0.064581,38744.0,38740.0,0.00020672]
[1646597872087,0.064576,38744.0,38740.0,0.00020672]
[1646597872288,0.064576,38744.0,38739.0,0.02534682]
[1646597873488,0.0517,38748.0,38747.0,0.20634665]
[1646597873690,0.04197308,38751.0,38747.0,0.20634665]
[1646597873891,0.742674,38750.0,38748.0,0.385992]
[1646597874099,0.743674,38750.0,38749.0,0.31666158]
[1646597874289,0.743674,38750.0,38749.0,0.52129901]
[1646597874889,0.743674,38750.0,38747.0,0.23216665]
[1646597875337,0.742674,38750.0,38747.0,0.23216665]
[1646597876539,0.742674,38750.0,38747.0,0.20634665]
[1646597877139,0.742674,38750.0,38748.0,0.17032047]
[1646597878040,0.742674,38750.0,38747.0,0.20634665]
[1646597878243,0.742674,38750.0,38747.0,0.20134665]
[1646597879082,0.74472454,38750.0,38749.0,0.00222692]
[1646597879287,0.80929554,38750.0,38749.0,0.00222692]
[1646597880585,0.94929554,38750.0,38749.0,0.00222692]
[1646597881186,0.98009598,38750.0,38749.0,0.00222692]
[1646597881584,1.18009598,38750.0,38749.0,0.00222692]
[1646597881788,1.12298476,38750.0,38749.0,0.00222692]
[1646597881985,1.12298476,38750.0,38747.0,0.20134665]
[1646597881986,1.1,38749.0,38747.0,0.19857357]
[1646597882188,0.28148204,38748.0,38747.0,0.19857357]
[1646597882385,0.1517,38748.0,38747.0,0.19857357]
[1646597882633,1.03913954,38748.0,38747.0,0.19857357]
[1646597882832,1.13913954,38748.0,38747.0,0.19857357]
[1646597883832,0.994374,38748.0,38747.0,0.19857357]
[1646597884836,1.13910011,38748.0,38747.0,0.19857357]
[1646597885736,1.21204011,38748.0,38747.0,0.19857357]
[1646597888198,1.1,38747.0,38739.0,0.02534682]
[1646597888395,0.381659,38740.0,38739.0,0.02534682]
[1646597888594,0.673359,38740.0,38739.0,0.02534682]
[1646597888792,0.773359,38740.0,38739.0,0.02534682]
[1646597888993,0.633359,38740.0,38739.0,0.02534682]
[1646597889394,0.773359,38740.0,38739.0,0.02534682]
[1646597889596,0.68914648,38740.0,38739.0,0.02534682]
[1646597889795,0.80289154,38740.0,38739.0,0.02534682]
[1646597890040,0.80289007,38740.0,38739.0,0.02534682]
[1646597890239,0.94761618,38740.0,38739.0,0.02034682]
[1646597890639,0.94761471,38740.0,38739.0,0.02034682]
[1646597890839,0.94761324,38740.0,38739.0,0.02034682]
[1646597891038,0.94761177,38740.0,38739.0,0.02034682]
[1646597891240,0.94760883,38740.0,38739.0,0.02034682]
[1646597891639,0.83387259,38740.0,38739.0,0.02034682]
[1646597891842,0.94762059,38740.0,38739.0,0.02034682]
[1646597892039,0.80289301,38740.0,38739.0,0.02034682]
[1646597892243,0.74710553,38740.0,38739.0,0.02034682]
[1646597892443,0.89183164,38740.0,38739.0,0.02034682]
[1646597892640,0.74710406,38740.0,38739.0,0.02034682]
[1646597892841,0.74710259,38740.0,38739.0,0.02034682]
[1646597893039,0.74709965,38740.0,38739.0,0.02034682]
[1646597893440,0.74709671,38740.0,38739.0,0.02034682]
[1646597893642,0.74709377,38740.0,38739.0,0.02034682]
[1646597894486,0.63538619,38740.0,38739.0,0.02034682]
[1646597894684,0.74912831,38740.0,38739.0,0.02034682]
[1646597894888,0.69742243,38740.0,38739.0,0.02034682]
[1646597895083,0.69741949,38740.0,38739.0,0.02034682]
[1646597895284,0.58368619,38740.0,38739.0,0.02034682]
[1646597895484,0.69741655,38740.0,38739.0,0.02034682]
[1646597895685,0.69741508,38740.0,38739.0,0.02034682]